[Event "Late-Titled-Tuesday-Blitz-October-17-2023"]
[Site "Chess.com"]
[Date "2023.10.17"]
[Round "9"]
[White "karinachess1"]
[Black "ameetghasi100"]
[Result "0-1"]
[WhiteElo "2621"]
[BlackElo "2803"]
[TimeControl "180+1"]
[EndTime "15:41:13 PDT"]
[Termination "ameetghasi100 won on time"]

1. d4 {[%clk 0:03:00.9]} 1... Nf6 {[%clk 0:03:00]} 2. c4 {[%clk 0:03:00.9]} 2...
g6 {[%clk 0:03:00.5]} 3. g3 {[%clk 0:03:00.6]} 3... Bg7 {[%clk 0:03:01.1]} 4.
Bg2 {[%clk 0:03:01]} 4... O-O {[%clk 0:03:02]} 5. Nc3 {[%clk 0:03:01.3]} 5... d6
{[%clk 0:03:02.5]} 6. h3 {[%clk 0:03:01.3]} 6... c6 {[%clk 0:03:02.3]} 7. Nf3
{[%clk 0:02:58.9]} 7... Qb6 {[%clk 0:03:00.2]} 8. O-O {[%clk 0:02:53.6]} 8...
Qa6 {[%clk 0:02:54.4]} 9. b3 {[%clk 0:02:47]} 9... b5 {[%clk 0:02:54.2]} 10. Qd3
{[%clk 0:02:18.8]} 10... Bf5 {[%clk 0:02:22]} 11. e4 {[%clk 0:02:17.3]} 11...
Nxe4 {[%clk 0:02:21.3]} 12. Nxe4 {[%clk 0:02:17.1]} 12... d5 {[%clk 0:02:21.4]}
13. Nfd2 {[%clk 0:02:13.2]} 13... bxc4 {[%clk 0:02:15.3]} 14. bxc4 {[%clk
0:02:13.1]} 14... dxe4 {[%clk 0:02:15.3]} 15. Nxe4 {[%clk 0:02:09.7]} 15... Rd8
{[%clk 0:02:13]} 16. Be3 {[%clk 0:01:57.6]} 16... e5 {[%clk 0:01:52.3]} 17. g4
{[%clk 0:01:34.5]} 17... Bxe4 {[%clk 0:01:52.1]} 18. Qxe4 {[%clk 0:01:26.2]}
18... exd4 {[%clk 0:01:52.3]} 19. Bg5 {[%clk 0:01:24.3]} 19... Rf8 {[%clk
0:01:46.6]} 20. c5 {[%clk 0:01:19.8]} 20... Qc8 {[%clk 0:01:35]} 21. Rac1 {[%clk
0:01:15.5]} 21... Re8 {[%clk 0:01:31.9]} 22. Qf4 {[%clk 0:01:10]} 22... Nd7
{[%clk 0:01:20.6]} 23. Bh6 {[%clk 0:01:03.2]} 23... Bh8 {[%clk 0:01:12.3]} 24.
Rfe1 {[%clk 0:00:58.3]} 24... Ne5 {[%clk 0:01:10.6]} 25. Qd2 {[%clk 0:00:52.2]}
25... Qa6 {[%clk 0:00:59.9]} 26. f4 {[%clk 0:00:43.2]} 26... Nd7 {[%clk
0:00:48.5]} 27. Rxe8+ {[%clk 0:00:33.1]} 27... Rxe8 {[%clk 0:00:49.4]} 28. Re1
{[%clk 0:00:33.8]} 28... Rd8 {[%clk 0:00:31.6]} 29. Re7 {[%clk 0:00:12.7]} 29...
Bf6 {[%clk 0:00:28.8]} 30. Qe1 {[%clk 0:00:05.2]} 30... Qc8 {[%clk 0:00:27.3]}
31. Re4 {[%clk 0:00:03.5]} 31... Nxc5 {[%clk 0:00:26.3]} 32. Re2 {[%clk
0:00:02.8]} 32... d3 {[%clk 0:00:25.1]} 33. Re3 {[%clk 0:00:01.7]} 33... Bd4
{[%clk 0:00:24.2]} 34. Qd2 {[%clk 0:00:01.2]} 34... Re8 {[%clk 0:00:13.8]} 35.
f5 {[%clk 0:00:01.4]} 35... gxf5 {[%clk 0:00:07.7]} 0-1

[Event "Late-Titled-Tuesday-Blitz-October-17-2023"]
[Site "Chess.com"]
[Date "2023.10.17"]
[Round "9"]
[White "Hambardzumyan_Yuri"]
[Black "Nf3c5"]
[Result "0-1"]
[WhiteElo "2488"]
[BlackElo "2618"]
[TimeControl "180+1"]
[EndTime "15:41:15 PDT"]
[Termination "Nf3c5 won on time"]

1. e4 {[%clk 0:03:00.9]} 1... e5 {[%clk 0:02:54.9]} 2. Nf3 {[%clk 0:03:00.5]}
2... Nc6 {[%clk 0:02:55]} 3. Nc3 {[%clk 0:02:58.2]} 3... Nf6 {[%clk 0:02:51.7]}
4. d4 {[%clk 0:02:58.6]} 4... Bb4 {[%clk 0:02:52.1]} 5. Nxe5 {[%clk 0:02:58.4]}
5... Qe7 {[%clk 0:02:48.8]} 6. Qd3 {[%clk 0:02:58.2]} 6... Nxd4 {[%clk
0:02:42.4]} 7. Qxd4 {[%clk 0:02:50.4]} 7... Bc5 {[%clk 0:02:42.3]} 8. Qd3 {[%clk
0:02:34.5]} 8... Qxe5 {[%clk 0:02:41.2]} 9. f4 {[%clk 0:02:20.8]} 9... Qe7
{[%clk 0:02:22.4]} 10. Be3 {[%clk 0:02:14.6]} 10... Bxe3 {[%clk 0:02:13.3]} 11.
Qxe3 {[%clk 0:02:15.5]} 11... d6 {[%clk 0:02:13.3]} 12. O-O-O {[%clk 0:02:13.3]}
12... O-O {[%clk 0:02:13]} 13. Bd3 {[%clk 0:02:11.9]} 13... Re8 {[%clk
0:02:00.3]} 14. Rde1 {[%clk 0:02:00.8]} 14... Be6 {[%clk 0:01:52.4]} 15. h3
{[%clk 0:01:55.9]} 15... c5 {[%clk 0:01:42.4]} 16. e5 {[%clk 0:01:29.4]} 16...
dxe5 {[%clk 0:01:36.7]} 17. Qxe5 {[%clk 0:01:25.2]} 17... Qf8 {[%clk 0:01:18.5]}
18. Qg5 {[%clk 0:01:14.6]} 18... c4 {[%clk 0:01:09.4]} 19. Ne4 {[%clk
0:01:03.3]} 19... Nxe4 {[%clk 0:00:56.3]} 20. Bxe4 {[%clk 0:01:04.2]} 20... c3
{[%clk 0:00:56.4]} 21. bxc3 {[%clk 0:01:01.1]} 21... Qa3+ {[%clk 0:00:54.5]} 22.
Kd2 {[%clk 0:01:01.3]} 22... Red8+ {[%clk 0:00:38.3]} 23. Bd3 {[%clk 0:00:58.7]}
23... Rac8 {[%clk 0:00:21.8]} 24. Qe5 {[%clk 0:00:46.5]} 24... Rd5 {[%clk
0:00:21.4]} 25. Qe4 {[%clk 0:00:40.5]} 25... Qxc3+ {[%clk 0:00:21.5]} 26. Ke2
{[%clk 0:00:41.2]} 26... g6 {[%clk 0:00:18.7]} 27. Rb1 {[%clk 0:00:32.7]} 27...
Rd4 {[%clk 0:00:18.5]} 28. Qxb7 {[%clk 0:00:24]} 28... Bd5 {[%clk 0:00:18.1]}
29. Qb2 {[%clk 0:00:14.6]} 29... Re8+ {[%clk 0:00:17.9]} 30. Kf1 {[%clk
0:00:09]} 30... Qd2 {[%clk 0:00:12.7]} 31. Rg1 {[%clk 0:00:01.9]} 31... Rxd3
{[%clk 0:00:09.2]} 32. cxd3 {[%clk 0:00:02.8]} 32... Re1+ {[%clk 0:00:09.4]} 33.
Rxe1 {[%clk 0:00:02.6]} 33... Qxb2 {[%clk 0:00:10.3]} 34. g3 {[%clk 0:00:02.1]}
34... Qd2 {[%clk 0:00:09.8]} 35. d4 {[%clk 0:00:02.5]} 35... Qd3+ {[%clk
0:00:09.9]} 36. Kf2 {[%clk 0:00:02.8]} 36... Qxd4+ {[%clk 0:00:10.6]} 37. Kf1
{[%clk 0:00:03.6]} 37... Qd2 {[%clk 0:00:10.6]} 38. Re7 {[%clk 0:00:01.8]} 38...
Bc4+ {[%clk 0:00:10.1]} 0-1

[Event "Late-Titled-Tuesday-Blitz-October-17-2023"]
[Site "Chess.com"]
[Date "2023.10.17"]
[Round "9"]
[White "JSlaby"]
[Black "wanyaland"]
[Result "1-0"]
[WhiteElo "2593"]
[BlackElo "2464"]
[TimeControl "180+1"]
[EndTime "15:41:21 PDT"]
[Termination "JSlaby won on time"]

1. e4 {[%clk 0:02:38.4]} 1... c5 {[%clk 0:02:58.4]} 2. Nf3 {[%clk 0:02:37.2]}
2... e6 {[%clk 0:02:58.6]} 3. c3 {[%clk 0:02:37]} 3... Nf6 {[%clk 0:02:57.6]} 4.
e5 {[%clk 0:02:36.6]} 4... Nd5 {[%clk 0:02:57.8]} 5. d4 {[%clk 0:02:36.8]} 5...
cxd4 {[%clk 0:02:58]} 6. cxd4 {[%clk 0:02:37.7]} 6... d6 {[%clk 0:02:54]} 7. Bc4
{[%clk 0:02:34.6]} 7... Qc7 {[%clk 0:02:51.4]} 8. Bxd5 {[%clk 0:02:31.5]} 8...
exd5 {[%clk 0:02:51.4]} 9. O-O {[%clk 0:02:26.8]} 9... Nc6 {[%clk 0:02:51.2]}
10. Nc3 {[%clk 0:02:26.2]} 10... Be6 {[%clk 0:02:50.4]} 11. Nb5 {[%clk
0:02:21.3]} 11... Qd8 {[%clk 0:02:48.3]} 12. Bg5 {[%clk 0:02:15.7]} 12... Qd7
{[%clk 0:02:48]} 13. Qa4 {[%clk 0:02:00.8]} 13... a6 {[%clk 0:02:45.1]} 14. Rfe1
{[%clk 0:01:47.1]} 14... Rc8 {[%clk 0:02:40.9]} 15. Nxd6+ {[%clk 0:01:43.9]}
15... Bxd6 {[%clk 0:02:40.2]} 16. exd6 {[%clk 0:01:43.5]} 16... Qxd6 {[%clk
0:02:40.6]} 17. a3 {[%clk 0:01:12.9]} 17... O-O {[%clk 0:02:39.4]} 18. Ne5
{[%clk 0:01:12.4]} 18... Rfe8 {[%clk 0:02:32.7]} 19. Bf4 {[%clk 0:01:07.8]}
19... Nxe5 {[%clk 0:02:16.8]} 20. Bxe5 {[%clk 0:01:07.7]} 20... Qb6 {[%clk
0:02:16.9]} 21. b4 {[%clk 0:01:05.8]} 21... Red8 {[%clk 0:02:12]} 22. Qd1 {[%clk
0:01:04.1]} 22... Rc4 {[%clk 0:02:07.1]} 23. h4 {[%clk 0:01:03.6]} 23... f6
{[%clk 0:02:04.7]} 24. Bf4 {[%clk 0:00:58.9]} 24... Rxd4 {[%clk 0:01:54.5]} 25.
Qf3 {[%clk 0:00:58.6]} 25... Qc6 {[%clk 0:01:36.1]} 26. Rac1 {[%clk 0:00:51.6]}
26... Qe8 {[%clk 0:01:29.5]} 27. h5 {[%clk 0:00:43.7]} 27... Qf7 {[%clk
0:01:10.7]} 28. Rc7 {[%clk 0:00:36.9]} 28... Bd7 {[%clk 0:01:02.5]} 29. h6
{[%clk 0:00:31.7]} 29... Re8 {[%clk 0:00:48.8]} 30. Be3 {[%clk 0:00:26.6]} 30...
Rde4 {[%clk 0:00:38.7]} 31. Rd1 {[%clk 0:00:25.5]} 31... d4 {[%clk 0:00:31.3]}
32. Rxd4 {[%clk 0:00:22.1]} 32... Rxd4 {[%clk 0:00:29.2]} 33. Bxd4 {[%clk
0:00:23]} 33... Re1+ {[%clk 0:00:18.2]} 34. Kh2 {[%clk 0:00:22.1]} 34... Qe6
{[%clk 0:00:14]} 35. Qg3 {[%clk 0:00:18.2]} 35... g5 {[%clk 0:00:12.1]} 36. Rxb7
{[%clk 0:00:12.6]} 36... Kf7 {[%clk 0:00:10.6]} 37. Rb6 {[%clk 0:00:10.8]} 37...
Bc6 {[%clk 0:00:09.2]} 38. Qc7+ {[%clk 0:00:07.5]} 38... Kg6 {[%clk 0:00:08.8]}
39. Rxc6 {[%clk 0:00:06.5]} 1-0

[Event "Late-Titled-Tuesday-Blitz-October-17-2023"]
[Site "Chess.com"]
[Date "2023.10.17"]
[Round "9"]
[White "Fdpo95"]
[Black "acertijo08"]
[Result "1/2-1/2"]
[WhiteElo "2477"]
[BlackElo "2345"]
[TimeControl "180+1"]
[EndTime "15:41:22 PDT"]
[Termination "Game drawn by repetition"]

1. e4 {[%clk 0:03:00.9]} 1... c5 {[%clk 0:02:58.7]} 2. Nf3 {[%clk 0:03:00.4]}
2... d6 {[%clk 0:02:57.9]} 3. d4 {[%clk 0:03:00.7]} 3... cxd4 {[%clk 0:02:57.6]}
4. Nxd4 {[%clk 0:03:01.6]} 4... Nf6 {[%clk 0:02:58]} 5. Nc3 {[%clk 0:03:01.7]}
5... Nc6 {[%clk 0:02:57.7]} 6. g3 {[%clk 0:02:57.4]} 6... e5 {[%clk 0:02:51.6]}
7. Nde2 {[%clk 0:02:52.4]} 7... Be7 {[%clk 0:02:49.5]} 8. Bg2 {[%clk 0:02:52.8]}
8... O-O {[%clk 0:02:49.4]} 9. O-O {[%clk 0:02:52.9]} 9... Be6 {[%clk
0:02:49.3]} 10. h3 {[%clk 0:02:52.9]} 10... Rc8 {[%clk 0:02:39.2]} 11. Be3
{[%clk 0:02:47.5]} 11... a6 {[%clk 0:02:32.5]} 12. a4 {[%clk 0:02:47.1]} 12...
Nb4 {[%clk 0:02:29.2]} 13. f4 {[%clk 0:02:32.5]} 13... exf4 {[%clk 0:02:24]} 14.
Nxf4 {[%clk 0:02:29.8]} 14... Bc4 {[%clk 0:01:57.6]} 15. Rf2 {[%clk 0:02:28.5]}
15... Nd7 {[%clk 0:01:57.8]} 16. Rc1 {[%clk 0:01:57.6]} 16... Ne5 {[%clk
0:01:53.2]} 17. b3 {[%clk 0:01:54.6]} 17... Be6 {[%clk 0:01:53.4]} 18. Nce2
{[%clk 0:01:52.9]} 18... Na2 {[%clk 0:01:35.9]} 19. Ra1 {[%clk 0:01:45.6]} 19...
Nc3 {[%clk 0:01:35.8]} 20. Qd2 {[%clk 0:01:40.6]} 20... Nxe2+ {[%clk 0:01:33.3]}
21. Nxe2 {[%clk 0:01:40.5]} 21... b5 {[%clk 0:01:25.7]} 22. axb5 {[%clk
0:01:39.8]} 22... axb5 {[%clk 0:01:26.6]} 23. Nd4 {[%clk 0:01:39.9]} 23... Qd7
{[%clk 0:01:05.8]} 24. Kh2 {[%clk 0:01:38.5]} 24... Ra8 {[%clk 0:00:58.9]} 25.
Rff1 {[%clk 0:01:35.8]} 25... Rfc8 {[%clk 0:00:53]} 26. Ra5 {[%clk 0:01:14.6]}
26... Bd8 {[%clk 0:00:48]} 27. Rxb5 {[%clk 0:01:03.9]} 27... Ra2 {[%clk
0:00:44.8]} 28. Rf2 {[%clk 0:00:53.2]} 28... Raxc2 {[%clk 0:00:34.7]} 29. Qxc2
{[%clk 0:00:53.2]} 29... Rxc2 {[%clk 0:00:34.1]} 30. Rxc2 {[%clk 0:00:54.1]}
30... h6 {[%clk 0:00:30.5]} 31. Rb8 {[%clk 0:00:48.5]} 31... Kh7 {[%clk
0:00:26.9]} 32. Ra2 {[%clk 0:00:29.8]} 32... Bg5 {[%clk 0:00:24.6]} 33. Bxg5
{[%clk 0:00:25.6]} 33... hxg5 {[%clk 0:00:25.5]} 34. Raa8 {[%clk 0:00:20.6]}
34... Qc7 {[%clk 0:00:23.6]} 35. Re8 {[%clk 0:00:16.2]} 35... Qc3 {[%clk
0:00:20.7]} 36. Nxe6 {[%clk 0:00:16.3]} 36... fxe6 {[%clk 0:00:21.2]} 37. Rxe6
{[%clk 0:00:16.6]} 37... Qxb3 {[%clk 0:00:21.1]} 38. Rae8 {[%clk 0:00:14.7]}
38... Qb2 {[%clk 0:00:19.2]} 39. Kh1 {[%clk 0:00:13.2]} 39... Qc1+ {[%clk
0:00:19]} 40. Kh2 {[%clk 0:00:13.5]} 40... Qd2 {[%clk 0:00:19.5]} 41. Kh1 {[%clk
0:00:13.9]} 41... Qe1+ {[%clk 0:00:19.9]} 42. Kh2 {[%clk 0:00:14.4]} 42... Qf2
{[%clk 0:00:19.8]} 43. Rxe5 {[%clk 0:00:14.3]} 43... dxe5 {[%clk 0:00:20]} 44.
Rxe5 {[%clk 0:00:15.2]} 44... Kg6 {[%clk 0:00:19.2]} 45. Rf5 {[%clk 0:00:15]}
45... Qe2 {[%clk 0:00:18.8]} 46. Re5 {[%clk 0:00:14.2]} 46... Kf6 {[%clk
0:00:18.4]} 47. Rf5+ {[%clk 0:00:14.4]} 47... Kg6 {[%clk 0:00:18.9]} 48. Rd5
{[%clk 0:00:14.8]} 48... Kf6 {[%clk 0:00:18.5]} 49. Rf5+ {[%clk 0:00:14.6]}
49... Kg6 {[%clk 0:00:18.7]} 1/2-1/2

[Event "Late-Titled-Tuesday-Blitz-October-17-2023"]
[Site "Chess.com"]
[Date "2023.10.17"]
[Round "9"]
[White "PawnEatingZombie"]
[Black "VdovinDmitry"]
[Result "1-0"]
[WhiteElo "2276"]
[BlackElo "2065"]
[TimeControl "180+1"]
[EndTime "15:41:22 PDT"]
[Termination "PawnEatingZombie won on time"]

1. e4 {[%clk 0:02:59.3]} 1... e5 {[%clk 0:02:59.7]} 2. Nf3 {[%clk 0:02:57.4]}
2... Nc6 {[%clk 0:02:59.5]} 3. Bb5 {[%clk 0:02:58]} 3... a6 {[%clk 0:02:58.9]}
4. Ba4 {[%clk 0:02:58.5]} 4... Nf6 {[%clk 0:02:57.8]} 5. Qe2 {[%clk 0:02:59]}
5... Bc5 {[%clk 0:02:51.8]} 6. c3 {[%clk 0:02:55.2]} 6... d6 {[%clk 0:02:51.3]}
7. d4 {[%clk 0:02:46.5]} 7... exd4 {[%clk 0:02:42.8]} 8. cxd4 {[%clk 0:02:45]}
8... Bb4+ {[%clk 0:02:42.6]} 9. Nc3 {[%clk 0:02:44.5]} 9... O-O {[%clk
0:02:39.5]} 10. O-O {[%clk 0:02:36.6]} 10... Bg4 {[%clk 0:02:37]} 11. Bxc6
{[%clk 0:02:33.2]} 11... bxc6 {[%clk 0:02:37.9]} 12. h3 {[%clk 0:02:30.8]} 12...
Bh5 {[%clk 0:02:35.3]} 13. e5 {[%clk 0:01:54.8]} 13... Bxc3 {[%clk 0:02:28.5]}
14. bxc3 {[%clk 0:01:53.8]} 14... Nd5 {[%clk 0:02:28.7]} 15. c4 {[%clk
0:01:40.2]} 15... Nb6 {[%clk 0:02:24.7]} 16. g4 {[%clk 0:01:31.3]} 16... Bg6
{[%clk 0:02:23.1]} 17. Bf4 {[%clk 0:01:29.1]} 17... d5 {[%clk 0:02:15.9]} 18.
cxd5 {[%clk 0:01:20.1]} 18... Nxd5 {[%clk 0:02:15]} 19. Bd2 {[%clk 0:01:17.3]}
19... Rb8 {[%clk 0:02:05]} 20. Rfc1 {[%clk 0:01:16.6]} 20... Qd7 {[%clk
0:02:03.3]} 21. Qc4 {[%clk 0:01:14.4]} 21... Rb6 {[%clk 0:02:00]} 22. Ba5 {[%clk
0:01:07.3]} 22... Rb5 {[%clk 0:01:59.2]} 23. Be1 {[%clk 0:00:57.1]} 23... Nf4
{[%clk 0:01:52.7]} 24. Kh2 {[%clk 0:00:45.7]} 24... Be4 {[%clk 0:01:51.2]} 25.
Ng5 {[%clk 0:00:35.6]} 25... h5 {[%clk 0:01:47.5]} 26. Nxe4 {[%clk 0:00:33.7]}
26... hxg4 {[%clk 0:01:46.3]} 27. Bd2 {[%clk 0:00:31.2]} 27... Nxh3 {[%clk
0:01:34.8]} 28. Qxc6 {[%clk 0:00:22.9]} 28... Qf5 {[%clk 0:01:34.2]} 29. Be3
{[%clk 0:00:18.3]} 29... Qh5 {[%clk 0:01:32.4]} 30. Kg3 {[%clk 0:00:17.3]} 30...
g5 {[%clk 0:01:28.2]} 31. Rh1 {[%clk 0:00:16.4]} 31... Qh4+ {[%clk 0:01:28.1]}
32. Kg2 {[%clk 0:00:16]} 32... Rb6 {[%clk 0:01:25.6]} 33. Qd7 {[%clk 0:00:15.2]}
33... Rh6 {[%clk 0:01:23.1]} 34. Nf6+ {[%clk 0:00:14.1]} 34... Kg7 {[%clk
0:01:20.8]} 35. Qxg4 {[%clk 0:00:13.5]} 35... Qxg4+ {[%clk 0:00:47.6]} 36. Nxg4
{[%clk 0:00:14.4]} 36... Rh4 {[%clk 0:00:48]} 37. f3 {[%clk 0:00:13.6]} 37...
Rfh8 {[%clk 0:00:40.7]} 38. Rh2 {[%clk 0:00:13.6]} 38... Nf4+ {[%clk 0:00:26.5]}
39. Bxf4 {[%clk 0:00:13.5]} 39... gxf4 {[%clk 0:00:27.1]} 40. Rxh4 {[%clk
0:00:13.4]} 40... Rxh4 {[%clk 0:00:27.5]} 41. Rh1 {[%clk 0:00:13.4]} 41... Rxh1
{[%clk 0:00:24.6]} 42. Kxh1 {[%clk 0:00:14.3]} 42... Kg6 {[%clk 0:00:24.6]} 43.
Kg2 {[%clk 0:00:15.1]} 43... Kf5 {[%clk 0:00:25.3]} 44. Kf2 {[%clk 0:00:15.5]}
44... Ke6 {[%clk 0:00:25.9]} 45. Ke2 {[%clk 0:00:15.7]} 45... Kd5 {[%clk
0:00:26.8]} 46. Kd3 {[%clk 0:00:16.2]} 46... c5 {[%clk 0:00:17.3]} 47. Nf6+
{[%clk 0:00:17.1]} 1-0

[Event "Late-Titled-Tuesday-Blitz-October-17-2023"]
[Site "Chess.com"]
[Date "2023.10.17"]
[Round "9"]
[White "Noki102"]
[Black "Mariia89"]
[Result "1-0"]
[WhiteElo "2441"]
[BlackElo "2137"]
[TimeControl "180+1"]
[EndTime "15:41:23 PDT"]
[Termination "Noki102 won on time"]

1. d4 {[%clk 0:02:59.1]} 1... Nf6 {[%clk 0:02:57.4]} 2. Nf3 {[%clk 0:02:58.8]}
2... c5 {[%clk 0:02:57.8]} 3. e3 {[%clk 0:02:58.9]} 3... cxd4 {[%clk 0:02:58.3]}
4. exd4 {[%clk 0:02:59]} 4... d5 {[%clk 0:02:57.8]} 5. Bd3 {[%clk 0:02:58.9]}
5... Bg4 {[%clk 0:02:57.2]} 6. c3 {[%clk 0:02:55.6]} 6... e6 {[%clk 0:02:53.9]}
7. Qa4+ {[%clk 0:02:49.6]} 7... Nfd7 {[%clk 0:02:40.6]} 8. Ne5 {[%clk
0:02:35.4]} 8... Bh5 {[%clk 0:02:30.2]} 9. O-O {[%clk 0:02:30.2]} 9... Bd6
{[%clk 0:02:16.2]} 10. Bf4 {[%clk 0:02:25.2]} 10... Bxe5 {[%clk 0:02:15.3]} 11.
Bxe5 {[%clk 0:02:15.8]} 11... Nc6 {[%clk 0:02:05.9]} 12. Bg3 {[%clk 0:02:14.4]}
12... O-O {[%clk 0:02:01.5]} 13. Re1 {[%clk 0:02:13.8]} 13... Bg6 {[%clk
0:01:49.7]} 14. Bf1 {[%clk 0:02:13.6]} 14... Qg5 {[%clk 0:01:36.5]} 15. h4
{[%clk 0:02:02.7]} 15... Qg4 {[%clk 0:01:11.9]} 16. Nd2 {[%clk 0:01:56.3]} 16...
e5 {[%clk 0:01:02.2]} 17. Be2 {[%clk 0:01:51]} 17... Qf5 {[%clk 0:00:54.8]} 18.
dxe5 {[%clk 0:01:49.9]} 18... Ndxe5 {[%clk 0:00:54.7]} 19. Nf3 {[%clk
0:01:46.6]} 19... Nd3 {[%clk 0:00:25.3]} 20. Bxd3 {[%clk 0:01:37.3]} 20... Qxd3
{[%clk 0:00:24.9]} 21. Rad1 {[%clk 0:01:37.5]} 21... Qc4 {[%clk 0:00:25.4]} 22.
Qa3 {[%clk 0:00:57.8]} 22... Rfe8 {[%clk 0:00:20.4]} 23. Ne5 {[%clk 0:00:45.5]}
23... Nxe5 {[%clk 0:00:19.7]} 24. Bxe5 {[%clk 0:00:46.4]} 24... Qxh4 {[%clk
0:00:15.3]} 25. Qb3 {[%clk 0:00:20.1]} 25... Be4 {[%clk 0:00:11.7]} 26. Qxb7
{[%clk 0:00:18.8]} 26... Qg5 {[%clk 0:00:09.9]} 27. Bg3 {[%clk 0:00:18.7]} 27...
h5 {[%clk 0:00:09.7]} 28. f3 {[%clk 0:00:10.4]} 28... Qxg3 {[%clk 0:00:09.3]}
29. fxe4 {[%clk 0:00:10.6]} 29... dxe4 {[%clk 0:00:08.1]} 30. Rxe4 {[%clk
0:00:10.9]} 30... Rxe4 {[%clk 0:00:08.2]} 31. Qxa8+ {[%clk 0:00:11.1]} 31... Kh7
{[%clk 0:00:06.3]} 32. Qxe4+ {[%clk 0:00:11.4]} 32... g6 {[%clk 0:00:06.7]} 33.
Rf1 {[%clk 0:00:10.5]} 33... Qc7 {[%clk 0:00:05.5]} 34. Qf4 {[%clk 0:00:10.2]}
34... Qb6+ {[%clk 0:00:05.5]} 35. Qf2 {[%clk 0:00:09.7]} 35... Qxf2+ {[%clk
0:00:05.2]} 36. Rxf2 {[%clk 0:00:09.8]} 1-0

[Event "Late-Titled-Tuesday-Blitz-October-17-2023"]
[Site "Chess.com"]
[Date "2023.10.17"]
[Round "9"]
[White "AlexPapasimakopoulos"]
[Black "aNaartjieZA"]
[Result "0-1"]
[WhiteElo "2678"]
[BlackElo "2562"]
[TimeControl "180+1"]
[EndTime "15:41:28 PDT"]
[Termination "aNaartjieZA won by checkmate"]

1. d4 {[%clk 0:02:55.2]} 1... Nf6 {[%clk 0:02:59.3]} 2. Nf3 {[%clk 0:02:53.8]}
2... c5 {[%clk 0:02:59.2]} 3. e3 {[%clk 0:02:51.5]} 3... b6 {[%clk 0:02:58.5]}
4. b3 {[%clk 0:02:51.5]} 4... g6 {[%clk 0:02:56.6]} 5. Bb2 {[%clk 0:02:51.6]}
5... Bg7 {[%clk 0:02:56.6]} 6. dxc5 {[%clk 0:02:52.3]} 6... bxc5 {[%clk
0:02:56.4]} 7. c4 {[%clk 0:02:53]} 7... Nc6 {[%clk 0:02:54.7]} 8. Be2 {[%clk
0:02:53.3]} 8... O-O {[%clk 0:02:54.1]} 9. O-O {[%clk 0:02:53.9]} 9... d6 {[%clk
0:02:54.4]} 10. Qd2 {[%clk 0:02:48.6]} 10... a5 {[%clk 0:02:37.3]} 11. Nc3
{[%clk 0:02:47.7]} 11... Bf5 {[%clk 0:02:37.3]} 12. Nh4 {[%clk 0:02:45.8]} 12...
Be6 {[%clk 0:02:33.5]} 13. Bf3 {[%clk 0:02:43.2]} 13... Qd7 {[%clk 0:02:27.2]}
14. g3 {[%clk 0:02:40.5]} 14... Ra6 {[%clk 0:02:23.3]} 15. Bg2 {[%clk
0:02:35.6]} 15... Bh3 {[%clk 0:02:18.5]} 16. Nf3 {[%clk 0:02:31.6]} 16... Bxg2
{[%clk 0:02:17.5]} 17. Kxg2 {[%clk 0:02:32.5]} 17... Rb8 {[%clk 0:02:13.8]} 18.
Na4 {[%clk 0:02:30.7]} 18... Ne4 {[%clk 0:02:08]} 19. Qc2 {[%clk 0:02:30.9]}
19... Bxb2 {[%clk 0:02:08.1]} 20. Qxb2 {[%clk 0:02:31.3]} 20... Qf5 {[%clk
0:02:05.5]} 21. Qc2 {[%clk 0:02:25.7]} 21... Nxg3 {[%clk 0:02:00.4]} 22. Qxf5
{[%clk 0:02:25.2]} 22... Nxf5 {[%clk 0:02:00.4]} 23. Rad1 {[%clk 0:02:24.9]}
23... Ra7 {[%clk 0:01:58.6]} 24. Rd2 {[%clk 0:02:24.5]} 24... Rab7 {[%clk
0:01:57.9]} 25. Rfd1 {[%clk 0:02:23.5]} 25... Rb4 {[%clk 0:01:55.5]} 26. Ne1
{[%clk 0:02:22.5]} 26... h5 {[%clk 0:01:49]} 27. Nd3 {[%clk 0:02:22.1]} 27...
R4b7 {[%clk 0:01:49]} 28. Nf4 {[%clk 0:02:22.1]} 28... Kg7 {[%clk 0:01:41.8]}
29. Nd5 {[%clk 0:02:21.1]} 29... Rh8 {[%clk 0:01:41.6]} 30. h3 {[%clk
0:02:19.8]} 30... g5 {[%clk 0:01:39.4]} 31. Ndc3 {[%clk 0:02:13.1]} 31... Rbb8
{[%clk 0:01:33.8]} 32. Ne4 {[%clk 0:02:11.8]} 32... g4 {[%clk 0:01:32]} 33. hxg4
{[%clk 0:02:10]} 33... hxg4 {[%clk 0:01:32.2]} 34. Rd5 {[%clk 0:02:10]} 34...
Kg6 {[%clk 0:01:23.6]} 35. Nac3 {[%clk 0:02:01.6]} 35... Nh4+ {[%clk 0:01:22.1]}
36. Kf1 {[%clk 0:01:58.3]} 36... Nf3 {[%clk 0:01:18.2]} 37. Ke2 {[%clk
0:01:58.3]} 37... Rh2 {[%clk 0:01:09.8]} 38. Ng3 {[%clk 0:01:57.2]} 38... Rbh8
{[%clk 0:01:05.7]} 39. Nce4 {[%clk 0:01:48.5]} 39... Rg2 {[%clk 0:00:48.8]} 40.
Nf5 {[%clk 0:01:38.9]} 40... Rhh2 {[%clk 0:00:37.3]} 41. Nfg3 {[%clk 0:01:25.9]}
41... Nce5 {[%clk 0:00:25.4]} 42. Nf1 {[%clk 0:01:23.6]} 42... Rh8 {[%clk
0:00:20.6]} 43. Neg3 {[%clk 0:01:21]} 43... Ra8 {[%clk 0:00:19.2]} 44. e4 {[%clk
0:01:14.2]} 44... a4 {[%clk 0:00:14.7]} 45. Ne3 {[%clk 0:01:14.4]} 45... axb3
{[%clk 0:00:12.8]} 46. Nxg2 {[%clk 0:01:13.6]} 46... Rxa2+ {[%clk 0:00:12.5]}
47. Kf1 {[%clk 0:01:06.3]} 47... Nxc4 {[%clk 0:00:12.2]} 48. Nf4+ {[%clk
0:01:04.5]} 48... Kg7 {[%clk 0:00:11.8]} 49. Nf5+ {[%clk 0:01:04.2]} 49... Kf8
{[%clk 0:00:12.2]} 50. R5d3 {[%clk 0:00:56.7]} 50... Ncd2+ {[%clk 0:00:12.2]}
51. Kg2 {[%clk 0:00:56.7]} 51... b2 {[%clk 0:00:12.4]} 52. Nd5 {[%clk
0:00:43.5]} 52... Ra1 {[%clk 0:00:11.7]} 53. R1xd2 {[%clk 0:00:24.9]} 53... Rg1#
{[%clk 0:00:11]} 0-1